bitfinex-derivatives/quotes_BTCF0:USTF0_20250928
["timestamp","ask_amount","ask_price","bid_price","bid_amount"]
[1759068183146,2.07834325,109680.0,109670.0,0.01]
[1759068183345,2.07834325,109680.0,109660.0,0.3608]
[1759068183533,1.67834325,109680.0,109660.0,0.3608]
[1759068183738,1.6291683,109680.0,109660.0,0.3608]
[1759068183939,1.6291683,109680.0,109650.0,1.54452]
[1759068184140,0.0911451,109660.0,109650.0,1.54452]
[1759068184342,0.98690078,109660.0,109650.0,1.54452]
[1759068184538,0.97290078,109660.0,109650.0,1.54452]
[1759068185357,0.97290078,109660.0,109650.0,1.56252]
[1759068185737,0.97290078,109660.0,109650.0,1.55652]
[1759068185942,0.97290078,109660.0,109650.0,1.56152]
[1759068187042,0.97390078,109660.0,109650.0,1.54952]
[1759068187850,1.00663542,109660.0,109650.0,1.54952]
[1759068188041,1.00647542,109660.0,109650.0,1.54952]
[1759068188547,0.08009032,109660.0,109650.0,1.54952]
[1759068188848,0.92929032,109660.0,109650.0,1.54952]
[1759068193143,0.94573063,109660.0,109650.0,1.54952]
[1759068193548,0.94573063,109660.0,109650.0,0.37952]
[1759068193849,0.94573063,109660.0,109650.0,0.01872]
[1759068194052,0.94573063,109660.0,109650.0,0.005]
[1759068194254,1.29655568,109660.0,109650.0,0.005]
[1759068194554,3.14943568,109660.0,109640.0,0.39566]
[1759068194854,0.04910792,109650.0,109640.0,1.56566]
[1759068195048,0.0491767,109650.0,109640.0,1.56566]
[1759068195548,0.07418916,109650.0,109640.0,1.56566]
[1759068195748,0.0491767,109650.0,109640.0,1.56666]
[1759068195948,0.07418916,109650.0,109640.0,1.56666]
[1759068196154,0.0491767,109650.0,109640.0,1.56666]
[1759068196354,0.07418916,109650.0,109640.0,1.56666]
[1759068196555,0.0491767,109650.0,109640.0,1.56666]
[1759068196849,0.92310916,109650.0,109640.0,1.56666]
[1759068197553,0.92310916,109650.0,109640.0,0.3751]
[1759068198054,0.92310916,109650.0,109640.0,0.001]
[1759068198757,1.28390916,109650.0,109640.0,0.001]
[1759068199150,1.68390916,109650.0,109640.0,0.001]
[1759068199455,1.63480124,109650.0,109640.0,0.001]
[1759068200059,1.68391822,109650.0,109640.0,0.001]
[1759068200256,0.78588124,109650.0,109640.0,0.001]
[1759068200459,3.53407918,109650.0,109640.0,0.001]
[1759068200959,0.83499918,109650.0,109640.0,0.001]
[1759068201660,3.48496124,109650.0,109640.0,0.001]
[1759068201859,0.78588124,109650.0,109640.0,0.001]
[1759068202060,3.63636124,109650.0,109640.0,0.001]
[1759068202356,0.93728124,109650.0,109640.0,0.001]
[1759068202554,3.63640124,109650.0,109640.0,0.001]
[1759068204661,3.63632124,109650.0,109640.0,0.001]
[1759068205163,0.93728124,109650.0,109640.0,0.001]
[1759068205362,3.63632124,109650.0,109640.0,0.001]
[1759068205762,0.93728124,109650.0,109640.0,0.001]
[1759068206064,3.63632124,109650.0,109640.0,0.001]
[1759068206256,0.93728124,109650.0,109640.0,0.001]
[1759068206452,3.63632124,109650.0,109640.0,0.001]
[1759068207464,3.63632124,109650.0,109630.0,0.39526]
[1759068207664,0.08185795,109640.0,109630.0,0.39526]
[1759068207869,0.0955803,109640.0,109630.0,0.37416]
[1759068208665,0.0955803,109640.0,109630.0,0.37716]
[1759068208866,0.16768586,109640.0,109630.0,0.37716]
[1759068209367,0.16768586,109640.0,109630.0,0.38016]
[1759068210263,0.16768586,109640.0,109630.0,0.37716]
[1759068210471,0.16768586,109640.0,109630.0,0.38016]
[1759068211667,0.30490737,109640.0,109630.0,0.38016]
[1759068212170,0.30490737,109640.0,109630.0,0.40126]
[1759068212474,0.30490737,109640.0,109630.0,0.38016]
[1759068213175,0.30490737,109640.0,109630.0,0.01936]
[1759068213671,0.2557926,109640.0,109630.0,0.01936]
[1759068214974,0.2557926,109640.0,109630.0,0.04046]
[1759068215777,1.1041926,109640.0,109630.0,0.04046]
[1759068216174,1.24450586,109640.0,109630.0,0.04046]
[1759068216374,1.1953549,109640.0,109630.0,0.04046]
[1759068216977,0.3469549,109640.0,109630.0,0.04046]
[1759068217177,1.24451155,109640.0,109630.0,0.04046]
[1759068217577,1.1953549,109640.0,109630.0,0.04046]
[1759068217777,0.3469549,109640.0,109630.0,0.04046]
[1759068218078,1.1952749,109640.0,109630.0,0.04046]
[1759068218275,1.24443879,109640.0,109630.0,0.04046]
[1759068218576,1.1952749,109640.0,109630.0,0.04046]
[1759068218771,1.1952743,109640.0,109630.0,0.04046]
[1759068219077,1.24444232,109640.0,109630.0,0.04046]
[1759068219673,1.1952743,109640.0,109630.0,0.04046]
[1759068220179,1.24445198,109640.0,109630.0,0.04046]
[1759068220478,1.1952743,109640.0,109630.0,0.04046]
[1759068223679,1.24450336,109640.0,109630.0,0.04046]
[1759068228486,1.60530336,109640.0,109630.0,0.01936]
[1759068231182,1.60530336,109640.0,109630.0,0.006]
[1759068231391,0.36015238,109630.0,109620.0,0.35991391]
[1759068231576,0.43451155,109630.0,109620.0,0.35991391]
[1759068232480,0.44351155,109630.0,109620.0,0.35991391]
[1759068233195,0.44751155,109630.0,109620.0,0.35991391]
[1759068233584,0.53868295,109630.0,109620.0,0.35991391]
[1759068233885,0.53868295,109630.0,109610.0,1.63474637]
[1759068234082,0.88065965,109620.0,109610.0,1.54355657]
[1759068234286,0.90567211,109620.0,109610.0,1.54355657]
[1759068234686,0.99695139,109620.0,109610.0,1.54355657]
[1759068234984,0.05793189,109620.0,109610.0,2.03474437]
[1759068235190,0.03291943,109620.0,109610.0,2.03474437]
[1759068235487,0.90569189,109620.0,109610.0,2.03474437]
[1759068235684,0.90969189,109620.0,109610.0,2.03474437]
[1759068236183,0.91769189,109620.0,109610.0,2.03474437]
[1759068236488,0.93682467,109620.0,109610.0,2.03474437]
[1759068237689,0.08906467,109620.0,109610.0,2.03474437]
[1759068237891,0.93682467,109620.0,109610.0,2.03474437]
[1759068238389,0.08906467,109620.0,109610.0,2.03474437]
[1759068238689,0.93674467,109620.0,109610.0,2.03474437]
[1759068239789,0.08906467,109620.0,109610.0,2.03474437]
[1759068240286,0.93670467,109620.0,109610.0,2.03474437]
[1759068244193,0.93658467,109620.0,109610.0,2.03474437]
[1759068246192,0.93650467,109620.0,109610.0,2.03474437]
[1759068246393,0.90368502,109620.0,109610.0,2.03474437]
[1759068246594,0.93650467,109620.0,109610.0,2.03474437]
[1759068252291,0.90368502,109620.0,109610.0,2.03474437]
[1759068253493,0.93650467,109620.0,109610.0,2.03474437]
[1759068254399,0.90368502,109620.0,109610.0,2.03474437]
[1759068254593,0.90368502,109620.0,109610.0,1.94355657]
[1759068254901,0.93650467,109620.0,109610.0,1.54355657]
[1759068263502,0.08906467,109620.0,109610.0,1.54355657]
[1759068263806,0.93602467,109620.0,109610.0,1.54355657]
[1759068264401,0.98527211,109620.0,109610.0,1.54355657]
[1759068267708,1.34196467,109620.0,109610.0,0.37355657]
[1759068268004,1.39121211,109620.0,109610.0,0.39510657]
[1759068268309,1.34196467,109620.0,109610.0,1.56510657]
[1759068270612,0.94196467,109620.0,109610.0,1.56510657]
[1759068270910,1.03314497,109620.0,109610.0,1.56510657]
[1759068271204,1.04957276,109620.0,109610.0,0.37355657]
[1759068271410,1.04957276,109620.0,109610.0,0.01275657]
[1759068271610,1.04957276,109620.0,109610.0,1.18275657]
[1759068273910,1.40032532,109620.0,109610.0,1.18275657]
[1759068274212,0.55336532,109620.0,109610.0,1.18275657]
[1759068274513,0.5536342,109620.0,109610.0,1.18275657]
[1759068274715,1.4002342,109620.0,109610.0,0.01275657]
[1759068274905,1.4002342,109620.0,109610.0,9.657e-05]
[1759068275422,1.4002342,109620.0,109610.0,1.17009657]
[1759068275813,1.4039442,109620.0,109610.0,9.657e-05]
[1759068276316,1.4002342,109620.0,109610.0,9.657e-05]
[1759068277114,1.44945578,109620.0,109610.0,9.657e-05]
[1759068277915,0.60285578,109620.0,109610.0,9.657e-05]
[1759068278213,3.30021578,109620.0,109610.0,9.657e-05]
[1759068278920,0.60285578,109620.0,109610.0,9.657e-05]
[1759068279114,0.60285578,109620.0,109610.0,0.02164657]
[1759068279325,3.30017578,109620.0,109610.0,0.03543657]
[1759068279619,3.26097578,109620.0,109610.0,0.03543657]
[1759068280716,3.66097578,109620.0,109610.0,9.657e-05]
[1759068280922,3.61165442,109620.0,109610.0,9.657e-05]
[1759068281122,3.61165442,109620.0,109600.0,0.01232283]
[1759068281317,0.05680509,109610.0,109600.0,0.01232283]
[1759068281514,0.43305639,109610.0,109600.0,0.03387283]
[1759068281718,1.30477773,109610.0,109600.0,0.03387283]
[1759068281923,1.30473773,109610.0,109600.0,0.03387283]
[1759068282123,1.30483099,109610.0,109600.0,0.03387283]
[1759068282422,1.30983099,109610.0,109600.0,0.03387283]
[1759068283016,1.30983099,109610.0,109600.0,0.03534]
[1759068283813,1.40101959,109610.0,109600.0,0.03534]
[1759068284115,1.40097959,109610.0,109600.0,0.03534]
[1759068284415,1.3517745,109610.0,109600.0,0.03534]
[1759068288119,1.3517345,109610.0,109600.0,0.03534]
[1759068289123,1.40093959,109610.0,109600.0,0.03534]
[1759068289820,1.40089959,109610.0,109600.0,0.03534]
[1759068291223,1.3680962,109610.0,109600.0,0.03534]
[1759068291922,1.38918037,109610.0,109600.0,0.03534]
[1759068303634,1.33997528,109610.0,109600.0,0.03534]
[1759068304836,1.33997528,109610.0,109600.0,0.01379]
[1759068306241,1.33993724,109610.0,109600.0,0.03593]
[1759068308542,1.33929724,109610.0,109600.0,0.03593]
[1759068309746,0.49365724,109610.0,109600.0,0.03593]
[1759068310346,1.33925724,109610.0,109600.0,0.03593]
[1759068313649,1.38854647,109610.0,109600.0,0.03593]
[1759068315448,1.65815787,109610.0,109590.0,1.54401]
[1759068315749,0.03286117,109600.0,109590.0,1.54401]
[1759068315944,0.05824107,109600.0,109590.0,1.54401]
[1759068317951,0.07466913,109600.0,109590.0,1.54401]
[1759068318345,0.07666913,109600.0,109590.0,1.54401]
[1759068318545,0.0273799,109600.0,109590.0,1.54401]
[1759068319049,0.07666913,109600.0,109590.0,1.54401]
[1759068319353,0.0273799,109600.0,109590.0,1.54401]
[1759068319744,0.07666913,109600.0,109590.0,1.54401]
[1759068323552,0.14963991,109600.0,109590.0,1.54401]
[1759068323753,0.10035068,109600.0,109590.0,1.54401]
[1759068324355,0.14957706,109600.0,109590.0,1.18321]
[1759068324550,0.46115068,109600.0,109590.0,1.18321]
[1759068324746,0.55234758,109600.0,109590.0,1.18321]
[1759068324946,0.60157521,109600.0,109590.0,1.18321]
[1759068325147,0.55234758,109600.0,109590.0,1.18321]
[1759068326656,0.60156645,109600.0,109590.0,1.18321]
[1759068337266,0.24076645,109600.0,109590.0,1.18321]
[1759068337966,1.08548645,109600.0,109590.0,1.18321]
[1759068338168,0.24076645,109600.0,109590.0,1.18321]
[1759068338468,1.08548645,109600.0,109590.0,1.54401]
[1759068339267,0.24076645,109600.0,109590.0,1.54401]
[1759068339464,1.08548645,109600.0,109590.0,1.54401]
[1759068341367,1.08540645,109600.0,109590.0,1.54401]
[1759068342165,0.14956955,109600.0,109590.0,1.54401]
[1759068342469,0.99418598,109600.0,109590.0,1.54401]
[1759068343570,0.14958598,109600.0,109590.0,1.54401]
[1759068343772,0.99406598,109600.0,109590.0,1.54401]
[1759068347273,0.14958598,109600.0,109590.0,1.54401]
[1759068347472,0.99394598,109600.0,109590.0,1.94401]
[1759068351970,0.14958598,109600.0,109590.0,2.0352152]
[1759068352172,1.02656938,109600.0,109590.0,2.0352152]
[1759068352373,0.18240938,109600.0,109590.0,2.0352152]
[1759068352771,1.02652938,109600.0,109590.0,2.0352152]
[1759068353071,1.02662051,109600.0,109590.0,2.0352152]
[1759068353272,0.18250051,109600.0,109590.0,2.0352152]
[1759068353473,0.97738521,109600.0,109590.0,2.0352152]
[1759068353672,1.02662051,109600.0,109590.0,2.0352152]
[1759068354071,0.18250051,109600.0,109590.0,2.0352152]
[1759068354274,0.86266521,109600.0,109590.0,2.0352152]
[1759068355481,0.97726521,109600.0,109590.0,2.0352152]
[1759068356174,0.13326521,109600.0,109590.0,2.0352152]
[1759068356382,0.94444181,109600.0,109590.0,2.0352152]
[1759068356678,0.10044181,109600.0,109590.0,2.0352152]
[1759068356980,0.94440181,109600.0,109590.0,2.0352152]
[1759068360386,0.10044181,109600.0,109590.0,2.0352152]
[1759068360582,0.70828181,109600.0,109590.0,2.0352152]
[1759068360781,0.66821247,109600.0,109590.0,2.0352152]
[1759068361585,0.66829698,109600.0,109590.0,2.0352152]
[1759068362387,0.74268312,109600.0,109590.0,2.0352152]
[1759068362785,0.94352312,109600.0,109590.0,2.0352152]
[1759068363284,1.03472002,109600.0,109590.0,2.0352152]
[1759068372593,1.03472002,109600.0,109590.0,2.3960152]
[1759068373396,0.19104002,109600.0,109590.0,2.3960152]
[1759068373697,0.85184002,109600.0,109590.0,2.3960152]
[1759068373898,0.19104002,109600.0,109590.0,2.3960152]
[1759068374091,1.03428002,109600.0,109590.0,2.3960152]
[1759068378002,0.19104002,109600.0,109590.0,2.3960152]
[1759068378203,0.85116002,109600.0,109590.0,2.3960152]
[1759068378403,1.03408002,109600.0,109590.0,2.3960152]
[1759068385011,1.03408002,109600.0,109590.0,1.6744152]
[1759068385205,1.03408002,109600.0,109590.0,2.3960152]
[1759068385710,0.19104002,109600.0,109590.0,2.3960152]
[1759068385904,0.75276002,109600.0,109590.0,2.3960152]
[1759068386809,0.09984312,109600.0,109590.0,2.3960152]
[1759068387009,0.59472312,109600.0,109590.0,2.3960152]
[1759068392813,0.68592002,109600.0,109590.0,2.3960152]
[1759068398619,0.68592002,109600.0,109590.0,1.6744152]
[1759068398821,0.68592002,109600.0,109590.0,2.3960152]
[1759068399423,0.68592002,109600.0,109590.0,1.9960152]
[1759068401819,0.71874342,109600.0,109590.0,1.9960152]
[1759068409429,0.22386342,109600.0,109590.0,1.9960152]
[1759068410630,0.22386342,109600.0,109590.0,1.2744152]
[1759068410826,0.19104002,109600.0,109590.0,1.9960152]
[1759068417037,0.19104002,109600.0,109590.0,1.2744152]
[1759068417235,0.19104002,109600.0,109590.0,1.9960152]
[1759068421141,0.2455123,109600.0,109590.0,1.9960152]
[1759068422639,1.0540089,109600.0,109590.0,1.9960152]
[1759068422841,1.03236002,109600.0,109590.0,1.9960152]
[1759068424139,1.06518342,109600.0,109590.0,1.9960152]
[1759068424339,1.03236002,109600.0,109590.0,1.9960152]
[1759068424734,1.06518342,109600.0,109590.0,1.9960152]
[1759068425244,1.03236002,109600.0,109590.0,1.9960152]
[1759068426555,1.03236002,109600.0,109590.0,1.90481]
[1759068426854,1.06518342,109600.0,109590.0,1.90481]
[1759068427056,1.06498342,109600.0,109590.0,1.9960152]
[1759068427258,0.19104002,109600.0,109590.0,1.9960152]
[1759068427456,1.03216002,109600.0,109590.0,1.9960152]
[1759068429458,1.03208002,109600.0,109590.0,1.9960152]
[1759068430353,0.94088312,109600.0,109590.0,1.9960152]
[1759068430859,0.97370652,109600.0,109590.0,1.9960152]
[1759068432660,0.94088312,109600.0,109590.0,1.9960152]
[1759068432853,0.97370652,109600.0,109590.0,1.9960152]
[1759068433160,0.94088312,109600.0,109590.0,1.9960152]
[1759068433363,0.97370652,109600.0,109590.0,1.9960152]
[1759068433658,0.13266652,109600.0,109590.0,1.9960152]
[1759068433962,0.97354652,109600.0,109590.0,1.9960152]
[1759068434956,0.13266652,109600.0,109590.0,1.9960152]
[1759068435164,0.94068312,109600.0,109590.0,1.9960152]
[1759068435861,0.97350652,109600.0,109590.0,1.9960152]
[1759068437759,1.06470342,109600.0,109590.0,1.9960152]
[1759068439262,0.22386342,109600.0,109590.0,1.9960152]
[1759068439459,1.06458342,109600.0,109590.0,1.9960152]
[1759068451366,0.13266652,109600.0,109590.0,1.9960152]
[1759068451560,0.09984312,109600.0,109590.0,2.3960152]
[1759068451860,0.62372312,109600.0,109590.0,2.3960152]
[1759068452066,0.09984312,109600.0,109590.0,2.3960152]
[1759068452368,0.94000312,109600.0,109590.0,2.3960152]
[1759068452568,0.09984312,109600.0,109590.0,2.3960152]
[1759068452768,0.93996312,109600.0,109590.0,2.3960152]
[1759068457574,0.10119148,109620.0,109610.0,0.0911886]
[1759068457774,0.84993278,109620.0,109610.0,0.8134386]
[1759068458074,0.8308,109620.0,109610.0,0.8134386]
[1759068458272,0.0689534,109630.0,109620.0,0.0918303]
[1759068458474,0.9088334,109630.0,109620.0,0.4526303]
[1759068459975,0.9088334,109630.0,109620.0,1.6226303]
[1759068460175,0.9217464,109630.0,109620.0,1.6226303]
[1759068460877,0.9267464,109630.0,109620.0,1.6226303]
[1759068461078,0.9367464,109630.0,109620.0,1.6226303]
[1759068461273,0.903923,109630.0,109620.0,1.6226303]
[1759068461878,0.995095,109630.0,109620.0,1.6226303]
[1759068462077,0.903923,109630.0,109620.0,1.6226303]
[1759068463981,0.064043,109630.0,109620.0,1.6226303]
[1759068464183,0.903643,109630.0,109620.0,1.6226303]
[1759068465583,0.064043,109630.0,109620.0,1.6226303]
[1759068465983,0.871243,109630.0,109620.0,1.6226303]
[1759068466786,0.903563,109630.0,109620.0,1.6226303]
[1759068466986,0.027913,109630.0,109620.0,1.6226303]
[1759068467283,0.867393,109630.0,109620.0,1.6226303]
[1759068467486,0.880193,109630.0,109620.0,1.6226303]
[1759068469179,0.971365,109630.0,109620.0,1.53145]
[1759068469385,1.371365,109630.0,109620.0,1.5308]
[1759068469686,1.42938929,109630.0,109620.0,1.5308]
[1759068474889,1.79018929,109630.0,109620.0,1.17]
[1759068475095,1.80660119,109630.0,109620.0,1.17]
[1759068475288,0.03594,109620.0,109610.0,0.36145]
[1759068475593,0.09390492,109620.0,109610.0,0.36145]
[1759068475890,0.09390492,109620.0,109610.0,1.53145]
[1759068476593,0.10090492,109620.0,109610.0,1.53145]
[1759068477491,0.10390492,109620.0,109610.0,1.53145]
[1759068478588,0.94294492,109620.0,109610.0,1.53145]
[1759068478891,0.94290492,109620.0,109610.0,1.53145]
[1759068479891,1.34290492,109620.0,109610.0,1.17]
[1759068480090,0.1271286,109610.0,109600.0,0.3608]
[1759068480293,0.15232949,109610.0,109600.0,0.3608]
[1759068480592,0.15232949,109610.0,109600.0,1.53145]
[1759068481693,0.15432949,109610.0,109600.0,1.53145]
[1759068482292,0.15832949,109610.0,109600.0,1.53145]
[1759068483794,0.59109352,109610.0,109600.0,1.5308]
[1759068486096,1.42989352,109610.0,109600.0,1.5308]
[1759068491005,0.59109352,109610.0,109600.0,1.5308]
[1759068491302,1.42973352,109610.0,109600.0,1.5308]
[1759068492898,0.09990492,109610.0,109600.0,1.17]
[1759068493094,0.09990492,109610.0,109600.0,1.6219969]
[1759068493291,0.03120089,109610.0,109600.0,2.0219969]
[1759068493497,0.86976089,109610.0,109600.0,2.0219969]
[1759068496213,0.04489089,109610.0,109600.0,2.0219969]
[1759068496412,0.84997089,109610.0,109600.0,2.0219969]
[1759068496603,0.04489089,109610.0,109600.0,2.0219969]
[1759068496802,0.88337089,109610.0,109600.0,2.0219969]
[1759068499412,0.04489089,109610.0,109600.0,2.0219969]
[1759068499710,0.87325089,109610.0,109600.0,2.0219969]
[1759068503617,0.03120089,109610.0,109600.0,2.0219969]
[1759068505716,0.03120089,109610.0,109600.0,2.8601969]
[1759068509118,0.03120089,109610.0,109600.0,2.0219969]
[1759068509418,0.03120089,109610.0,109600.0,2.8599569]
[1759068509618,0.03120089,109610.0,109600.0,2.0219969]
[1759068509818,0.03120089,109610.0,109600.0,2.8599569]
[1759068513523,0.03120089,109610.0,109600.0,2.0219969]
[1759068513713,0.03120089,109610.0,109600.0,2.8597969]
[1759068514519,0.03120089,109610.0,109600.0,2.0219969]
[1759068515025,0.03120089,109610.0,109600.0,2.8597569]
[1759068515917,0.03120089,109610.0,109600.0,2.0219969]
[1759068516119,0.04405089,109610.0,109600.0,1.6219969]
[1759068518426,0.13523949,109610.0,109600.0,1.6219969]
[1759068519021,0.15673077,109610.0,109600.0,1.5308]
[1759068519232,0.5894948,109610.0,109600.0,1.5308]
[1759068519534,0.16800352,109610.0,109600.0,1.5308]
[1759068519929,0.16800352,109610.0,109600.0,1.17]
[1759068519930,0.92880352,109610.0,109600.0,1.17]
[1759068520131,0.03516,109600.0,109590.0,0.31587899]
[1759068520330,0.95481109,109600.0,109590.0,0.31587899]
[1759068520634,0.98001198,109600.0,109590.0,1.48587899]
[1759068520835,0.97997198,109600.0,109590.0,1.48587899]
[1759068521229,0.98097198,109600.0,109590.0,1.48587899]
[1759068521426,0.09417668,109600.0,109590.0,1.48587899]
[1759068521633,0.93173668,109600.0,109590.0,1.48587899]
[1759068522639,1.00580546,109600.0,109590.0,1.48587899]
[1759068526732,1.00576546,109600.0,109590.0,1.48587899]
[1759068527446,0.16828546,109600.0,109590.0,1.48587899]
[1759068527646,1.00576546,109600.0,109590.0,1.48587899]
[1759068530048,0.16828546,109600.0,109590.0,1.48587899]
[1759068530248,1.00576546,109600.0,109590.0,1.48587899]
[1759068530451,0.16828546,109600.0,109590.0,1.48587899]
[1759068530646,1.00568546,109600.0,109590.0,1.48587899]
[1759068533053,0.16828546,109600.0,109590.0,1.48587899]
[1759068533352,0.97278967,109600.0,109590.0,1.48587899]
[1759068533950,0.16828546,109600.0,109590.0,1.48587899]
[1759068534451,1.00556546,109600.0,109590.0,1.48587899]
[1759068535054,0.16828546,109600.0,109590.0,1.48587899]
[1759068535246,1.00556546,109600.0,109590.0,1.48587899]
[1759068541461,0.16828546,109600.0,109590.0,1.48587899]
[1759068541658,1.00540546,109600.0,109590.0,1.48587899]
[1759068541857,0.16828546,109600.0,109590.0,1.48587899]
[1759068542058,1.00536546,109600.0,109590.0,1.48587899]
[1759068542363,1.00532546,109600.0,109590.0,1.48587899]
[1759068542561,0.16828546,109600.0,109590.0,1.48587899]
[1759068542758,1.09652236,109600.0,109590.0,1.57708419]
[1759068543066,0.25948236,109600.0,109590.0,1.57708419]
[1759068543258,1.09652236,109600.0,109590.0,1.57708419]
[1759068543653,0.25948236,109600.0,109590.0,1.57708419]
[1759068543861,1.09652236,109600.0,109590.0,1.57708419]
[1759068548170,1.14575766,109600.0,109590.0,1.57708419]
[1759068549265,1.11294187,109600.0,109590.0,1.57708419]
[1759068554859,1.11294187,109600.0,109590.0,1.48587899]
[1759068557579,1.11300478,109600.0,109590.0,1.48587899]
[1759068558273,1.14585687,109600.0,109590.0,1.48587899]
[1759068558476,1.11300478,109600.0,109590.0,1.48587899]
[1759068559268,1.87380478,109600.0,109590.0,1.17]
[1759068570983,2.02530478,109600.0,109590.0,1.17]
[1759068571282,1.87380478,109600.0,109590.0,1.17]
[1759068579591,1.47380478,109600.0,109590.0,1.17]
[1759068580490,0.63676478,109600.0,109580.0,0.40228]
[1759068580685,0.90402822,109590.0,109580.0,0.40293]
[1759068580890,0.95046743,109590.0,109580.0,0.40293]
[1759068581092,0.95046743,109590.0,109580.0,1.57293]
[1759068581894,0.11442743,109590.0,109580.0,1.57293]
[1759068582093,0.95042743,109590.0,109580.0,1.57293]
[1759068582291,0.11442743,109590.0,109580.0,1.57493]
[1759068582587,0.20563343,109590.0,109580.0,1.6661443]
[1759068582793,1.04159343,109590.0,109580.0,1.6681443]
[1759068583595,1.04159343,109590.0,109580.0,1.6661443]
[1759068583795,1.04159343,109590.0,109580.0,1.6681443]
[1759068585896,1.04155343,109590.0,109580.0,1.6681443]
[1759068586285,1.04151343,109590.0,109580.0,1.6681443]
[1759068590193,1.09074873,109590.0,109580.0,1.6681443]
[1759068590501,0.25486873,109590.0,109580.0,1.6681443]
[1759068590696,1.09058873,109590.0,109580.0,1.6681443]
[1759068591091,0.16366273,109590.0,109580.0,1.6681443]
[1759068591300,0.05810202,109590.0,109580.0,2.0681443]
[1759068591596,0.03283822,109590.0,109580.0,2.0681443]
[1759068591899,0.05810202,109590.0,109580.0,2.0681443]
[1759068592099,0.53767822,109590.0,109580.0,2.0681443]
[1759068592397,0.5301038,109590.0,109580.0,2.0681443]
[1759068592594,0.0252638,109590.0,109580.0,2.0681443]
[1759068592794,0.96790889,109600.0,109590.0,0.0918561]
[1759068592995,0.96790889,109600.0,109590.0,0.4526561]
[1759068593196,0.13222889,109600.0,109590.0,0.4526561]
[1759068593397,0.96786889,109600.0,109590.0,0.4526561]
[1759068593898,0.96886889,109600.0,109590.0,0.4526561]
[1759068595000,0.98167889,109600.0,109590.0,0.4526561]
[1759068596195,1.00312889,109600.0,109590.0,0.4526561]
[1759068596596,1.09432669,109600.0,109590.0,0.4526561]
[1759068598704,1.00312889,109600.0,109590.0,0.4526561]
[1759068600707,0.98143889,109600.0,109590.0,0.4526561]
[1759068601407,0.14603889,109600.0,109590.0,0.4526561]
[1759068601608,0.93575067,109600.0,109590.0,0.8526561]
[1759068603707,0.10039067,109600.0,109590.0,0.8526561]
[1759068603905,0.93571067,109600.0,109590.0,0.8526561]
[1759068604104,0.96997067,109600.0,109590.0,0.8526561]
[1759068604407,0.96993067,109600.0,109590.0,0.8526561]
[1759068605405,0.13465067,109600.0,109590.0,0.8526561]
[1759068605606,0.96993067,109600.0,109590.0,0.8526561]
[1759068607007,0.13465067,109600.0,109590.0,0.8526561]
[1759068607210,0.96989067,109600.0,109590.0,0.8526561]
[1759068607903,0.13465067,109600.0,109590.0,0.8526561]
[1759068608108,0.96985067,109600.0,109590.0,0.8526561]
[1759068609105,0.13465067,109600.0,109590.0,0.8526561]
[1759068609407,0.96981067,109600.0,109590.0,0.8526561]
[1759068610009,0.13465067,109600.0,109590.0,0.8526561]
[1759068610209,0.96981067,109600.0,109590.0,0.8526561]
[1759068610510,0.96977067,109600.0,109590.0,0.8526561]
[1759068611004,0.13465067,109600.0,109590.0,0.8526561]
[1759068611309,0.96977067,109600.0,109590.0,0.8526561]
[1759068611510,0.13465067,109600.0,109590.0,0.8526561]
[1759068611709,0.96977067,109600.0,109590.0,0.8526561]
[1759068612010,0.96973067,109600.0,109590.0,0.8526561]
[1759068612209,0.13465067,109600.0,109590.0,0.8526561]
[1759068612411,0.96973067,109600.0,109590.0,0.8526561]
[1759068612606,0.13465067,109600.0,109590.0,0.8526561]
[1759068612806,0.96973067,109600.0,109590.0,0.8526561]
[1759068613512,0.13465067,109600.0,109590.0,0.8526561]
[1759068613709,0.10039067,109600.0,109590.0,0.8526561]
[1759068614013,0.01268,109610.0,109600.0,0.0911958]
[1759068614209,0.01268,109610.0,109600.0,0.4519958]
[1759068615009,0.01668,109610.0,109600.0,0.4519958]
[1759068615502,0.01868,109610.0,109600.0,0.4519958]
[1759068618812,0.03433649,109620.0,109610.0,0.0911895]
[1759068619016,0.03433649,109620.0,109610.0,0.4519895]
[1759068620210,0.04033649,109620.0,109610.0,0.4519895]
[1759068621319,0.04333649,109620.0,109610.0,0.4519895]
[1759068622021,0.13451759,109620.0,109610.0,0.4519895]
[1759068625222,0.04333649,109620.0,109610.0,0.4519895]
[1759068625720,0.15679759,109620.0,109610.0,0.4519895]
[1759068625920,0.18188634,109620.0,109610.0,0.4519895]
[1759068629020,0.18188634,109620.0,109610.0,0.8127895]
[1759068631919,0.58133695,109620.0,109610.0,0.7216]
[1759068632221,0.61417517,109620.0,109610.0,0.3608]
[1759068632725,0.66341047,109620.0,109610.0,0.3608]
[1759068633827,0.03614,109610.0,109600.0,0.3608]
[1759068634129,0.92843834,109610.0,109600.0,0.3608]
[1759068634526,0.09399834,109610.0,109600.0,0.3608]
[1759068634830,0.89766875,109610.0,109600.0,0.3608]
[1759068635228,0.89866875,109610.0,109600.0,0.3608]
[1759068636531,0.93143834,109610.0,109600.0,0.3608]
[1759068640431,0.89866875,109610.0,109600.0,0.3608]
[1759068648538,0.06422875,109610.0,109600.0,0.3608]
[1759068648836,0.89846875,109610.0,109600.0,0.3608]
[1759068655046,0.06422875,109610.0,109600.0,0.3608]
[1759068655244,0.89830875,109610.0,109600.0,0.3608]
[1759068659149,0.06422875,109610.0,109600.0,0.3608]
[1759068659337,0.89822875,109610.0,109600.0,0.3608]
[1759068660143,0.93099834,109610.0,109600.0,0.3608]
[1759068673161,0.98023364,109610.0,109600.0,0.3608]
[1759068676064,0.94746405,109610.0,109600.0,0.3608]
[1759068677162,0.03522,109600.0,109590.0,0.4520011]
[1759068677457,0.1662151,109600.0,109590.0,0.4520011]
[1759068677660,0.09316406,109600.0,109590.0,0.4520011]
[1759068678355,0.09316406,109600.0,109590.0,0.4530011]
[1759068678560,0.09316406,109600.0,109590.0,0.4540011]
[1759068680859,0.11429513,109600.0,109590.0,0.4540011]
[1759068681064,0.09316406,109600.0,109590.0,0.3628]
[1759068682066,0.16528855,109600.0,109590.0,0.3628]
[1759068684269,0.99884855,109600.0,109590.0,0.3628]
[1759068686166,0.16528855,109600.0,109590.0,0.3628]
[1759068686366,0.99876855,109600.0,109590.0,0.3628]
[1759068686570,0.96591324,109600.0,109590.0,0.3628]
[1759068687075,0.13243324,109600.0,109590.0,0.3628]
[1759068687568,0.91235324,109600.0,109590.0,0.3628]
[1759068687960,0.91249718,109600.0,109590.0,0.3628]
[1759068688366,0.22377468,109600.0,109590.0,0.4540069]
[1759068688672,1.05725468,109600.0,109590.0,0.4540069]
[1759068694579,1.05717468,109600.0,109590.0,0.4540069]
[1759068694779,1.05717468,109600.0,109590.0,0.3628]
[1759068694978,1.05717468,109600.0,109590.0,0.4540069]